[Event "WYCC 2018 O18"]
[Site "Halkidiki"]
[Date "2018.10.21"]
[Round "2"]
[White "Gonzalez Carrillo, Javier Omar"]
[Black "Ozates, Tuna"]
[Result "1/2-1/2"]
[ECO "B30"]
[WhiteElo "2031"]
[BlackElo "2225"]
[Annotator "NA"]
[PlyCount "115"]
[EventDate "2018.10.20"]
[EventType "swiss"]
[EventCountry "GRE"]
[SourceTitle "playchess.com"]
[Source "ChessBase"]
[SourceQuality "1"]
[TimeControl "40/5400+30:1800+30"]

1. e4 {[%emt 0:00:00]} c5 {[%emt 0:00:00]} 2. Nf3 {[%emt 0:00:00]} Nc6 {[%emt 0:00:00]} 3. b3 {[%emt 0:00:00]} e5 {[%emt 0:00:00]} 4. Bb2 {[%emt 0:00:16]} d6 {[%emt 0:00:00]} 5. g3 {[%emt 0:07:39]} g6 {[%emt 0:02:32]} 6. Bg2 {[%emt 0:00:33]} Bg7 {[%emt 0:00:05]} 7. c3 {[%emt 0:01:58]} Nge7 {[%emt 0:02:14]} 8. O-O {[%emt 0:03:06]} O-O {[%emt 0:00:40]} 9. h3 $146 {[%emt 0:15:31] A04: Unusual lines after 1 Nf3 and King's Indian Attack} ({Predecessor:} 9. d4 exd4 10. cxd4 Bg4 11. Nbd2 Nxd4 12. Bxd4 Bxd4 13. Rc1 Qd7 14. h3 Bxf3 15. Nxf3 Nc6 16. Nxd4 Nxd4 {0-1 (38) Wohl,A (2360)-Jamieson,R (2455) Melbourne 1993}) 9... d5 {[%emt 0:02:36]} 10. exd5 {[%emt 0:04:22]} Nxd5 {[%emt 0:00:07]} 11. Re1 {[%emt 0:00:15]} Re8 {[%emt 0:04:25]} 12. d3 {[%emt 0:08:31]} Bf5 {[%emt 0:06:17]} 13. Nh4 {[%emt 0:08:50]} Be6 {[%emt 0:00:57]} 14. Nf3 $1 {[%emt 0:00:52]} f5 {[%emt 0:13:15]} 15. Nbd2 {[%emt 0:09:51]} Bf7 {[%emt 0:02:09]} 16. Qc1 {[%emt 0:08:42]} h6 {[%emt 0:02:03]} 17. Nc4 {[%emt 0:02:01]} Qd7 {[%emt 0:06:54]} 18. Qc2 {[%emt 0:02:25]} Rad8 {[%emt 0:01:38]} 19. Rad1 {[%emt 0:00:21]} b5 {[%emt 0:05:49]} 20. Ne3 {[%emt 0:01:24]} Nxe3 {[%emt 0:00:28]} 21. fxe3 {[%emt 0:00:36]} Qc7 {[%emt 0:08:16]} 22. e4 {[%emt 0:06:07]} fxe4 {[%emt 0:02:11]} 23. dxe4 c4 24. b4 {[%emt 0:02:13]} a5 {[%emt 0:00:27]} 25. a3 {[%emt 0:00:17]} Be6 {[%emt 0:03:40]} 26. Bc1 {[%emt 0:00:30]} Rf8 {[%emt 0:00:39]} 27. Kh2 {[%emt 0:02:26]} g5 {[%emt 0:08:44]} 28. Qe2 {[%emt 0:00:54]} axb4 {[%emt 0:00:22]} 29. axb4 {[%emt 0:00:01]} Ra8 {[%emt 0:06:55]} 30. Qe3 {[%emt 0:04:29]} Bf6 {[%emt 0:03:44]} 31. Rd2 {[%emt 0:04:25]} Kg7 {[%emt 0:02:42]} 32. Red1 {[%emt 0:01:34]} Be7 {[%emt 0:00:05]} 33. h4 {[%emt 0:05:32]} Rh8 {[%emt 0:02:09]} 34. Rf2 {[%emt 0:00:17]} g4 {[%emt 0:00:20]} 35. Ne1 {[%emt 0:00:41]} Qa7 {[%emt 0:01:05]} 36. Nc2 {[%emt 0:00:26]} Qc7 {[%emt 0:06:34]} 37. Rfd2 {[%emt 0:00:42]} Ra2 {[%emt 0:04:41]} 38. Qe2 {[%emt 0:00:25]} Rd8 {[%emt 0:00:26]} 39. Ne3 {[%emt 0:00:01]} Raxd2 {[%emt 0:00:34]} 40. Rxd2 {[%emt 0:00:00]} Rxd2 {[%emt 0:00:00]} 41. Bxd2 {[%emt 0:01:06]} h5 {[%emt 0:18:00]} 42. Nd5 {[%emt 0:02:21]} Qd6 {[%emt 0:00:29]} 43. Qe3 {[%emt 0:00:54]} (43. Qf2 $16) 43... Bxd5 {[%emt 0:02:43]} 44. exd5 {[%emt 0:00:02]} Nd8 {[%emt 0:00:06]} 45. Qa7 {[%emt 0:01:11]} Nf7 {[%emt 0:00:45]} 46. Qb7 {[%emt 0:06:19]} Qf6 {[%emt 0:02:56]} 47. Be3 {[%emt 0:06:48]} ({Inferior is} 47. Qxb5 Qf2 $17) 47... Nd6 {[%emt 0:02:49]} 48. Qd7 {[%emt 0:00:02]} Qf7 {[%emt 0:00:26]} 49. Bc5 {[%emt 0:11:46]} Qf6 {[%emt 0:00:08]} 50. Bxd6 {[%emt 0:02:02]} Qxd6 {[%emt 0:00:02]} 51. Qxb5 {[%emt 0:00:48]} e4 {[%emt 0:01:18]} 52. Qxc4 {[%emt 0:00:02]} Bxh4 {[%emt 0:00:18]} 53. Qd4+ {[%emt 0:00:01]} Bf6 {[%emt 0:01:45]} 54. Qa7+ {[%emt 0:01:30]} Kf8 {[%emt 0:00:42]} 55. Qa8+ {[%emt 0:03:13]} Ke7 {[%emt 0:01:00]} 56. Qb7+ {[%emt 0:00:17]} Kd8 {[%emt 0:00:34]} 57. Qa8+ {[%emt 0:01:13]} Ke7 {[%emt 0:00:14]} 58. Qb7+ $11 {[%emt 0:00:22]} 1/2-1/2

[Event "WYCC 2018 O18"]
[Site "Halkidiki"]
[Date "2018.10.21"]
[Round "2"]
[White "Bilic, Milanko"]
[Black "Petersson, Baldur Teodor"]
[Result "0-1"]
[ECO "B43"]
[WhiteElo "2009"]
[BlackElo "2195"]
[Annotator "NA"]
[PlyCount "48"]
[EventDate "2018.10.20"]
[EventType "swiss"]
[EventCountry "GRE"]
[SourceTitle "playchess.com"]
[Source "ChessBase"]
[SourceQuality "1"]
[TimeControl "40/5400+30:1800+30"]

1. e4 {[%emt 0:00:00]} c5 {[%emt 0:00:00]} 2. Nf3 {[%emt 0:00:03]} e6 {[%emt 0:00:00]} 3. d4 {[%emt 0:00:34]} cxd4 {[%emt 0:00:00]} 4. Nxd4 {[%emt 0:00:06]} a6 {[%emt 0:00:15]} 5. Nc3 {[%emt 0:00:08]} Qc7 {[%emt 0:00:56]} 6. Bd3 {[%emt 0:00:09]} Nc6 {[%emt 0:03:42]} 7. Nxc6 {[%emt 0:09:22]} bxc6 {[%emt 0:02:50]} 8. Qe2 {[%emt 0:01:52]} Nf6 {[%emt 0:09:37]} 9. O-O {[%emt 0:10:15]} d5 {[%emt 0:02:13]} 10. Bg5 {[%emt 0:07:45] LiveBook: 39 Games} d4 {[%emt 0:10:07]} 11. e5 {[%emt 0:10:20]} dxc3 {[%emt 0:07:14]} 12. exf6 {[%emt 0:00:28]} Qa5 {[%emt 0:07:29]} 13. Bh4 {[%emt 0:14:27]} cxb2 {[%emt 0:05:32]} 14. Rad1 {[%emt 0:06:12]} Bd7 $18 {[%emt 0:04:19]} (14... g6 $16) 15. Be4 {[%emt 0:03:37]} g6 {[%emt 0:09:39]} 16. c4 {[%emt 0:11:30]} Rb8 {[%emt 0:06:01]} 17. Bg3 {[%emt 0:02:09]} Rb7 {[%emt 0:00:44]} 18. Rd2 {[%emt 0:04:58]} Qc3 {[%emt 0:12:25]} 19. Rfd1 {[%emt 0:01:19]} Bh6 {[%emt 0:00:47]} 20. Rd4 {[%emt 0:07:40]} Bc1 {[%emt 0:10:04]} 21. R1d3 {[%emt 0:06:16]} b1=Q {[%emt 0:02:03]} 22. Rxc3 {[%emt 0:00:12]} Qa1 {[%emt 0:00:07]} 23. Rcd3 {[%emt 0:00:34]} Bd2+ {[%emt 0:00:14]} 24. Qf1 {[%emt 0:01:12]} Rb1 {[%emt 0:00:09]} 0-1

[Event "WYCC 2018 O18"]
[Site "Halkidiki"]
[Date "2018.10.21"]
[Round "3"]
[White "Miciano, John Marvin"]
[Black "Alexakis, Dimitris"]
[Result "1/2-1/2"]
[ECO "A05"]
[WhiteElo "2361"]
[BlackElo "2186"]
[Annotator "NA"]
[PlyCount "122"]
[EventDate "2018.10.20"]
[EventType "swiss"]
[EventCountry "GRE"]
[SourceTitle "playchess.com"]
[Source "ChessBase"]
[SourceQuality "1"]
[TimeControl "40/5400+30:1800+30"]

1. Nf3 {[%emt 0:00:12]} Nf6 {[%emt 0:00:00]} 2. g3 {[%emt 0:00:17]} d5 {[%emt 0:01:35]} 3. Bg2 {[%emt 0:00:48]} c5 {[%emt 0:06:10]} 4. O-O {[%emt 0:00:26]} Nc6 {[%emt 0:00:21]} 5. d4 {[%emt 0:01:42]} e6 {[%emt 0:00:14]} 6. a3 {[%emt 0:01:58]} cxd4 {[%emt 0:06:18]} 7. Nxd4 {[%emt 0:00:10]} Bc5 {[%emt 0:00:43]} 8. Nf3 {[%emt 0:05:50] LiveBook: 4 Games} b5 {[%emt 0:09:19]} 9. b4 {[%emt 0:03:07]} Be7 {[%emt 0:04:31]} 10. Qd3 {[%emt 0:02:30]} a5 {[%emt 0:15:59]} 11. bxa5 {[%emt 0:14:22]} Rxa5 {[%emt 0:02:10]} 12. Nbd2 {[%emt 0:02:33]} b4 {[%emt 0:01:06]} 13. Nb3 {[%emt 0:00:24]} Ra8 {[%emt 0:08:53]} 14. Nbd4 $15 {[%emt 0:01:21]} Nxd4 {[%emt 0:06:04]} 15. Nxd4 {[%emt 0:02:44]} Qd7 {[%emt 0:03:42]} 16. Bb2 {[%emt 0:02:02]} bxa3 {[%emt 0:27:12]} 17. Bxa3 {[%emt 0:01:46]} Bxa3 {[%emt 0:02:10]} 18. Rxa3 {[%emt 0:00:53]} Rxa3 {[%emt 0:00:19]} 19. Qxa3 {[%emt 0:00:09]} Qe7 {[%emt 0:00:13]} 20. Qa2 {[%emt 0:02:28]} O-O {[%emt 0:00:58]} 21. Rb1 {[%emt 0:00:50]} Qc5 {[%emt 0:00:51]} 22. e3 {[%emt 0:01:15]} Bd7 {[%emt 0:00:32]} 23. Qb2 {[%emt 0:03:22]} Rc8 {[%emt 0:00:41]} 24. Bf1 {[%emt 0:00:59]} h6 {[%emt 0:01:13]} 25. Ba6 {[%emt 0:01:30]} Re8 {[%emt 0:00:37]} 26. Nf3 {[%emt 0:03:13]} Ba4 {[%emt 0:00:34]} 27. Bd3 {[%emt 0:00:44]} Bc6 {[%emt 0:00:29]} 28. Ne5 {[%emt 0:02:42]} Nd7 {[%emt 0:00:27]} 29. Nxd7 {[%emt 0:01:36]} Bxd7 {[%emt 0:00:02]} 30. Qe5 {[%emt 0:04:09]} Rc8 {[%emt 0:01:04]} 31. Rb7 {[%emt 0:02:21]} Be8 {[%emt 0:00:20]} 32. e4 {[%emt 0:04:16]} Qc6 {[%emt 0:00:35]} 33. Rb1 {[%emt 0:00:49]} dxe4 {[%emt 0:00:28]} 34. Bxe4 {[%emt 0:00:53]} Qc5 {[%emt 0:00:35]} 35. Qxc5 {[%emt 0:00:46]} Rxc5 {[%emt 0:00:03]} 36. Bd3 {[%emt 0:00:43]} Kf8 {[%emt 0:00:36]} 37. Kf1 {[%emt 0:00:56]} Ba4 {[%emt 0:00:33]} 38. Rb2 {[%emt 0:00:27]} Ke7 {[%emt 0:00:20]} 39. Ke2 {[%emt 0:00:09]} Bc6 {[%emt 0:00:37]} 40. Rb4 {[%emt 0:00:00]} e5 {[%emt 0:00:00]} 41. Rc4 {[%emt 0:01:43]} Kd6 {[%emt 0:04:45]} 42. Ke3 {[%emt 0:00:27]} Rxc4 {[%emt 0:11:38]} 43. Bxc4 {[%emt 0:00:08]} f6 {[%emt 0:02:51]} 44. Bd3 {[%emt 0:00:34]} Ke6 {[%emt 0:01:10]} 45. f4 {[%emt 0:00:26]} Kd6 {[%emt 0:02:17]} 46. h4 {[%emt 0:01:16]} exf4+ {[%emt 0:00:45]} 47. Kxf4 {[%emt 0:00:40]} Bd7 {[%emt 0:00:20]} 48. Bf5 {[%emt 0:02:07]} g5+ {[%emt 0:03:59]} 49. hxg5 {[%emt 0:00:27]} fxg5+ {[%emt 0:00:29]} 50. Kg4 {[%emt 0:01:05]} Be8 {[%emt 0:00:15]} 51. c4 {[%emt 0:00:57]} Ke5 {[%emt 0:00:41]} 52. Bd3 {[%emt 0:01:18]} Kf6 {[%emt 0:02:54]} 53. Kf3 {[%emt 0:00:17]} h5 {[%emt 0:00:53]} 54. Ke4 {[%emt 0:00:25]} h4 {[%emt 0:02:40]} 55. gxh4 {[%emt 0:00:21]} Bc6+ {[%emt 0:00:10]} 56. Kd4 {[%emt 0:00:18]} gxh4 {[%emt 0:00:07]} 57. Bf1 {[%emt 0:00:20]} Kg5 {[%emt 0:00:10]} 58. Ke5 {[%emt 0:00:45]} Kg4 {[%emt 0:00:08]} 59. Kd6 {[%emt 0:00:11]} Bf3 {[%emt 0:00:29]} 60. c5 {[%emt 0:00:08]} h3 {[%emt 0:00:34]} 61. Bxh3+ {[%emt 0:00:06]} Kxh3 {[%emt 0:00:06]} 1/2-1/2

[Event "WYCC 2018 O18"]
[Site "Halkidiki"]
[Date "2018.10.21"]
[Round "3"]
[White "Mitrabha, Guha"]
[Black "Lindbol, Aleksander"]
[Result "1/2-1/2"]
[ECO "A46"]
[WhiteElo "2352"]
[BlackElo "2166"]
[Annotator "NA"]
[PlyCount "138"]
[EventDate "2018.10.20"]
[EventType "swiss"]
[EventCountry "GRE"]
[SourceTitle "playchess.com"]
[Source "ChessBase"]
[SourceQuality "1"]
[TimeControl "40/5400+30:1800+30"]

1. d4 {[%emt 0:00:00]} Nf6 {[%emt 0:00:00]} 2. Nf3 {[%emt 0:00:11]} e6 {[%emt 0:00:22]} 3. c3 {[%emt 0:00:15]} b6 {[%emt 0:02:31]} 4. Bf4 {[%emt 0:00:23]} Bb7 {[%emt 0:00:56]} 5. e3 {[%emt 0:00:56]} Be7 {[%emt 0:02:09]} 6. Nbd2 {[%emt 0:00:08]} d6 {[%emt 0:02:19]} 7. Bd3 {[%emt 0:00:35]} Nbd7 {[%emt 0:01:33]} 8. Qe2 {[%emt 0:00:48]} a5 {[%emt 0:07:05]} 9. h4 {[%emt 0:00:41]} a4 {[%emt 0:14:53]} 10. a3 {[%emt 0:00:06]} h6 {[%emt 0:02:37]} 11. O-O-O {[%emt 0:02:17]} c5 $14 {[%emt 0:07:50]} 12. Kb1 {[%emt 0:01:17]} Qc7 {[%emt 0:01:06]} 13. e4 {[%emt 0:01:08]} O-O {[%emt 0:12:18]} 14. Bh2 {[%emt 0:12:36]} Ng4 {[%emt 0:13:06]} 15. Bg3 {[%emt 0:00:29]} Rac8 {[%emt 0:07:43]} 16. Bc2 {[%emt 0:02:34]} b5 {[%emt 0:11:19]} 17. dxc5 {[%emt 0:01:47]} Nxc5 {[%emt 0:00:33]} 18. Nd4 {[%emt 0:00:35]} Ne5 {[%emt 0:01:55]} 19. Nxb5 {[%emt 0:10:58]} Qb6 {[%emt 0:00:12]} 20. f4 {[%emt 0:00:48]} Ba6 {[%emt 0:03:07]} 21. fxe5 {[%emt 0:00:11]} Bxb5 {[%emt 0:00:08]} 22. c4 {[%emt 0:00:07]} Ba6 {[%emt 0:00:33]} 23. Qe3 {[%emt 0:00:19]} dxe5 {[%emt 0:02:56]} 24. Bxe5 {[%emt 0:00:16]} f6 {[%emt 0:00:17]} 25. Bc3 {[%emt 0:00:16]} e5 {[%emt 0:00:10]} 26. g4 {[%emt 0:00:32]} Qe6 {[%emt 0:01:39]} 27. Rdg1 {[%emt 0:04:45]} Nb3 {[%emt 0:03:01]} 28. Rg2 {[%emt 0:08:00]} Rfd8 {[%emt 0:00:41]} 29. Nxb3 {[%emt 0:05:25]} axb3 {[%emt 0:00:06]} 30. Bxb3 {[%emt 0:00:03]} Bxc4 {[%emt 0:00:15]} 31. Bxc4 {[%emt 0:00:27]} Qxc4 {[%emt 0:00:30]} 32. Rc1 {[%emt 0:00:22]} Qb3 {[%emt 0:01:19]} 33. g5 {[%emt 0:01:44]} fxg5 {[%emt 0:00:40]} 34. hxg5 {[%emt 0:00:25]} Bxg5 {[%emt 0:00:29]} 35. Rxg5 {[%emt 0:00:07]} hxg5 {[%emt 0:00:05]} 36. Qxg5 {[%emt 0:00:04]} Qe6 {[%emt 0:01:06]} 37. Rg1 {[%emt 0:00:31]} Rd7 {[%emt 0:00:08]} 38. Qg3 {[%emt 0:02:43]} Re8 {[%emt 0:00:51]} 39. Rh1 {[%emt 0:00:52]} Qb3 {[%emt 0:00:22]} 40. Bxe5 {[%emt 0:00:00]} Qxg3 {[%emt 0:00:00]} 41. Bxg3 {[%emt 0:07:38]} Rxe4 {[%emt 0:01:49]} 42. Rh5 {[%emt 0:03:31]} Rg4 {[%emt 0:05:51]} 43. Bb8 {[%emt 0:00:43]} g5 {[%emt 0:01:33]} 44. Be5 {[%emt 0:00:15]} Rh7 {[%emt 0:01:19]} 45. Rxh7 {[%emt 0:00:04]} Kxh7 {[%emt 0:00:09]} 46. b4 {[%emt 0:00:01]} Kg6 {[%emt 0:11:09]} 47. b5 {[%emt 0:00:44]} Ra4 {[%emt 0:01:10]} 48. Kb2 {[%emt 0:02:44]} Ra5 {[%emt 0:02:12]} 49. a4 {[%emt 0:00:06]} Kf5 {[%emt 0:02:36]} 50. Bc7 {[%emt 0:02:24]} Rxa4 {[%emt 0:00:12]} 51. b6 {[%emt 0:00:01]} Ke6 {[%emt 0:02:03]} 52. Kc3 {[%emt 0:00:25]} Kd7 {[%emt 0:00:34]} 53. Kd3 {[%emt 0:00:04]} Rb4 {[%emt 0:00:51]} 54. Kc3 {[%emt 0:00:06]} Ra4 {[%emt 0:00:59]} 55. Kd3 {[%emt 0:00:12]} Kc6 {[%emt 0:00:05]} 56. Ke3 {[%emt 0:00:04]} Rb4 {[%emt 0:01:27]} 57. Kf3 {[%emt 0:00:10]} Kd5 {[%emt 0:00:18]} 58. Bd8 {[%emt 0:00:27]} g4+ {[%emt 0:00:09]} 59. Kg3 {[%emt 0:00:03]} Ke6 {[%emt 0:00:09]} 60. Bc7 {[%emt 0:00:18]} Kf5 {[%emt 0:00:10]} 61. Kg2 {[%emt 0:00:08]} Rb3 {[%emt 0:04:45]} 62. Kf2 {[%emt 0:00:17]} Ke4 {[%emt 0:00:18]} 63. Kg2 {[%emt 0:00:08]} g3 {[%emt 0:01:03]} 64. Bxg3 {[%emt 0:00:06]} Rxb6 {[%emt 0:00:03]} 65. Bc7 {[%emt 0:00:15]} Rb3 {[%emt 0:00:43]} 66. Kh1 {[%emt 0:00:13]} Rb2 {[%emt 0:00:21]} 67. Bd6 {[%emt 0:00:06]} Kf3 {[%emt 0:00:11]} 68. Bc5 {[%emt 0:00:11]} Rb1+ {[%emt 0:00:29]} 69. Bg1 {[%emt 0:00:08]} Kg3 {[%emt 0:00:07]} 1/2-1/2

[Event "WYCC 2018 O18"]
[Site "Halkidiki"]
[Date "2018.10.21"]
[Round "3"]
[White "Ahmadzada, Ahmad"]
[Black "Costachi, Mihnea"]
[Result "1/2-1/2"]
[ECO "C68"]
[WhiteElo "2343"]
[BlackElo "2484"]
[Annotator "ChessBase"]
[PlyCount "62"]
[EventDate "2018.10.20"]
[EventType "swiss"]
[EventCountry "GRE"]
[SourceTitle "playchess.com"]
[Source "ChessBase"]
[SourceQuality "1"]
[TimeControl "40/5400+30:1800+30"]

1. e4 {[%emt 0:00:00]} e5 {[%emt 0:00:19]} 2. Nf3 {[%emt 0:00:00]} Nc6 {[%emt 0:00:03]} 3. Bb5 {[%emt 0:00:00]} a6 {[%emt 0:01:05]} 4. Bxc6 {[%emt 0:00:00]} dxc6 {[%emt 0:00:03]} 5. d4 {[%emt 0:00:00]} exd4 {[%emt 0:00:04]} 6. Qxd4 {[%emt 0:00:00]} Qxd4 {[%emt 0:00:03]} 7. Nxd4 {[%emt 0:00:07]} Bd7 {[%emt 0:00:05]} 8. Nc3 {[%emt 0:00:52]} O-O-O {[%emt 0:00:06]} 9. Be3 {[%emt 0:00:26]} Ne7 {[%emt 0:01:21]} 10. O-O-O {[%emt 0:00:24]} Ng6 {[%emt 0:00:53]} 11. f3 {[%emt 0:06:36]} f6 {[%emt 0:10:57]} 12. Nde2 {[%emt 0:17:27]} Bd6 {[%emt 0:07:23]} 13. Rd2 {[%emt 0:03:01]} h5 {[%emt 0:02:48]} 14. h4 {[%emt 0:04:16]} Kb8 {[%emt 0:33:30]} 15. Bf2 {[%emt 0:03:02]} Nf4 {[%emt 0:03:11]} 16. Bg3 {[%emt 0:03:50]} Nxe2+ {[%emt 0:00:31]} 17. Nxe2 {[%emt 0:00:08]} Bc5 {[%emt 0:01:37]} 18. Nd4 {[%emt 0:01:22]} Rde8 {[%emt 0:05:33]} 19. Kb1 {[%emt 0:00:42]} Bc8 {[%emt 0:02:24]} 20. Rhd1 {[%emt 0:01:05]} g5 {[%emt 0:01:28]} 21. Nf5 {[%emt 0:02:46]} g4 {[%emt 0:01:49]} 22. Nd4 {[%emt 0:02:20]} gxf3 {[%emt 0:00:40]} 23. gxf3 {[%emt 0:00:09]} Rhg8 {[%emt 0:00:17]} 24. Bf4 {[%emt 0:00:36]} Bh3 {[%emt 0:03:27]} 25. c3 {[%emt 0:01:10]} Rg2 {[%emt 0:02:48]} 26. Rxg2 {[%emt 0:03:53]} Bxg2 {[%emt 0:00:01]} 27. Rd2 {[%emt 0:01:17]} Rg8 {[%emt 0:03:28]} 28. e5 {[%emt 0:02:24]} fxe5 {[%emt 0:01:28]} 29. Bxe5 {[%emt 0:00:05]} Bxd4 {[%emt 0:07:43]} 30. Rxd4 {[%emt 0:00:14]} Bxf3 {[%emt 0:00:21]} 31. Rd7 {[%emt 0:01:25]} Be4+ {[%emt 0:03:59]} 1/2-1/2

[Event "WYCC 2018 O18"]
[Site "Halkidiki"]
[Date "2018.10.21"]
[Round "3"]
[White "Ranaldi, Lucas"]
[Black "Jain, Gautam"]
[Result "1-0"]
[ECO "E62"]
[WhiteElo "2335"]
[BlackElo "1905"]
[Annotator "ChessBase"]
[PlyCount "111"]
[EventDate "2018.10.20"]
[EventType "swiss"]
[EventCountry "GRE"]
[SourceTitle "playchess.com"]
[Source "ChessBase"]
[SourceQuality "1"]
[TimeControl "40/5400+30:1800+30"]

1. c4 {[%emt 0:00:00]} Nf6 {[%emt 0:00:00]} 2. g3 {[%emt 0:02:38]} g6 {[%emt 0:00:00]} 3. Bg2 {[%emt 0:00:05]} Bg7 {[%emt 0:00:00]} 4. d4 {[%emt 0:00:28]} O-O {[%emt 0:00:00]} 5. Nf3 {[%emt 0:00:26]} d6 {[%emt 0:00:05]} 6. O-O {[%emt 0:00:08]} c6 {[%emt 0:00:05]} 7. Nc3 {[%emt 0:00:21]} Qa5 {[%emt 0:00:13]} 8. e4 {[%emt 0:00:56]} e5 {[%emt 0:00:11]} 9. d5 {[%emt 0:01:08]} cxd5 {[%emt 0:01:52]} 10. cxd5 {[%emt 0:00:28]} Na6 11. Nd2 {[%emt 0:08:38]} Ne8 {[%emt 0:16:21]} 12. a3 {[%emt 0:04:06]} Bd7 {[%emt 0:03:02]} 13. Nb3 {[%emt 0:07:20]} Qd8 {[%emt 0:01:48]} 14. Be3 {[%emt 0:00:45]} f5 {[%emt 0:04:17]} 15. f3 {[%emt 0:05:44]} Nf6 {[%emt 0:13:27]} 16. Kh1 {[%emt 0:01:18]} f4 {[%emt 0:14:43]} 17. Bf2 {[%emt 0:19:47]} Bh6 {[%emt 0:10:17]} 18. Qe2 Bg5 {[%emt 0:07:45]} 19. Nb5 {[%emt 0:16:48]} Ne8 {[%emt 0:10:57]} 20. a4 {[%emt 0:09:40]} h5 {[%emt 0:03:36]} 21. Rg1 {[%emt 0:05:50]} Qf6 {[%emt 0:05:52]} 22. gxf4 {[%emt 0:03:23]} Bxf4 23. Nc1 {[%emt 0:03:13]} Nb4 {[%emt 0:01:40]} 24. Nd3 {[%emt 0:03:06]} Nxd3 {[%emt 0:00:08]} 25. Qxd3 {[%emt 0:00:02]} Kh7 {[%emt 0:03:39]} 26. Nc3 {[%emt 0:03:25]} h4 {[%emt 0:01:01]} 27. Bf1 {[%emt 0:01:28]} Ng7 {[%emt 0:01:03]} 28. Ne2 {[%emt 0:01:12]} Bh6 {[%emt 0:00:40]} 29. Ra3 {[%emt 0:01:01]} Nh5 {[%emt 0:00:18]} 30. Qd1 {[%emt 0:00:40]} b6 31. Qe1 {[%emt 0:00:48]} Bg5 {[%emt 0:01:39]} 32. Rxg5 {[%emt 0:00:01]} Qxg5 {[%emt 0:00:05]} 33. Bxh4 {[%emt 0:00:09]} Qh6 34. Be7 {[%emt 0:00:01]} Rfe8 {[%emt 0:01:39]} 35. Bxd6 {[%emt 0:00:51]} Nf4 {[%emt 0:00:05]} 36. Nxf4 {[%emt 0:01:07]} Qxf4 {[%emt 0:00:49]} 37. Bb4 {[%emt 0:00:48]} Qf6 {[%emt 0:00:19]} 38. Bd2 {[%emt 0:00:30]} Rac8 {[%emt 0:00:44]} 39. Be2 {[%emt 0:00:00]} Kg7 40. a5 b5 {[%emt 0:00:00]} 41. Rc3 {[%emt 0:10:55]} Rxc3 {[%emt 0:09:37]} 42. Bxc3 {[%emt 0:00:03]} g5 {[%emt 0:01:13]} 43. Qg1 {[%emt 0:02:22]} a6 {[%emt 0:05:02]} 44. Bd2 {[%emt 0:03:48]} Kg6 {[%emt 0:00:05]} 45. h4 {[%emt 0:02:57]} g4 46. Bg5 {[%emt 0:02:37]} Qd6 {[%emt 0:02:21]} 47. fxg4 {[%emt 0:01:38]} Qb4 {[%emt 0:05:10]} 48. Qb6+ {[%emt 0:01:47]} Re6 {[%emt 0:05:52]} 49. dxe6 {[%emt 0:06:00]} Qxe4+ {[%emt 0:01:49]} 50. Kg1 {[%emt 0:00:19]} Bc6 {[%emt 0:00:23]} 51. Bd3 {[%emt 0:00:36]} Qxd3 {[%emt 0:00:17]} 52. Qxc6 {[%emt 0:00:09]} Qd4+ {[%emt 0:02:19]} 53. Kh2 {[%emt 0:00:58]} Qxb2+ {[%emt 0:00:25]} 54. Qg2 {[%emt 0:00:25]} Qc3 {[%emt 0:00:29]} 55. e7 {[%emt 0:00:26]} Qc8 {[%emt 0:00:32]} 56. Qe4+ {[%emt 0:00:14]} 1-0

[Event "WYCC 2018 O18"]
[Site "Halkidiki"]
[Date "2018.10.21"]
[Round "3"]
[White "Pantzar, Milton"]
[Black "Jimenez Ramallo, Francisco J"]
[Result "1/2-1/2"]
[ECO "D17"]
[WhiteElo "2326"]
[BlackElo "2073"]
[Annotator "ChessBase"]
[PlyCount "112"]
[EventDate "2018.10.20"]
[EventType "swiss"]
[EventCountry "GRE"]
[SourceTitle "playchess.com"]
[Source "ChessBase"]
[SourceQuality "1"]
[TimeControl "40/5400+30:1800+30"]

1. d4 {[%emt 0:00:00]} d5 {[%emt 0:00:00]} 2. c4 {[%emt 0:00:00]} c6 {[%emt 0:00:00]} 3. Nc3 {[%emt 0:06:37]} Nf6 {[%emt 0:00:00]} 4. Nf3 {[%emt 0:01:36]} dxc4 {[%emt 0:00:00]} 5. a4 {[%emt 0:01:52]} Bf5 {[%emt 0:00:07]} 6. Ne5 {[%emt 0:02:10]} Nbd7 {[%emt 0:00:13]} 7. Nxc4 {[%emt 0:00:29]} Qc7 {[%emt 0:00:16]} 8. g3 {[%emt 0:12:25]} e5 {[%emt 0:00:10]} 9. dxe5 {[%emt 0:01:12]} Nxe5 {[%emt 0:00:07]} 10. Bf4 {[%emt 0:04:20]} Nfd7 {[%emt 0:00:10]} 11. Qc1 {[%emt 0:13:30]} f6 {[%emt 0:08:09]} 12. Bg2 {[%emt 0:06:00]} Be6 {[%emt 0:37:58]} 13. Ne3 {[%emt 0:05:04]} Bc5 {[%emt 0:06:09]} 14. O-O {[%emt 0:03:22]} g5 {[%emt 0:04:42]} 15. Bxe5 {[%emt 0:02:44]} Qxe5 {[%emt 0:00:18]} 16. Ne4 {[%emt 0:05:36]} Be7 {[%emt 0:08:42]} 17. Nc4 {[%emt 0:03:24]} Qc7 {[%emt 0:01:38]} 18. Rd1 {[%emt 0:07:52]} O-O {[%emt 0:04:07]} 19. Ne3 {[%emt 0:10:41]} f5 {[%emt 0:04:44]} 20. Nd2 {[%emt 0:02:22]} Rac8 {[%emt 0:09:49]} 21. Nf3 {[%emt 0:01:01]} Ne5 {[%emt 0:06:22]} 22. Nd4 {[%emt 0:01:09]} Bd7 {[%emt 0:00:01]} 23. Qc2 {[%emt 0:02:49]} f4 {[%emt 0:01:55]} 24. Nef5 {[%emt 0:01:00]} Bxf5 {[%emt 0:01:57]} 25. Nxf5 {[%emt 0:00:04]} Kh8 {[%emt 0:02:45]} 26. Nd4 {[%emt 0:01:49]} Rf6 {[%emt 0:01:22]} 27. Qb3 {[%emt 0:02:01]} Ng4 {[%emt 0:01:01]} 28. Bh3 {[%emt 0:01:42]} h5 {[%emt 0:00:01]} 29. Qc3 {[%emt 0:01:00]} fxg3 {[%emt 0:00:50]} 30. hxg3 {[%emt 0:00:27]} Nxf2 {[%emt 0:00:46]} 31. Bxc8 {[%emt 0:00:21]} Nxd1 {[%emt 0:00:26]} 32. Rxd1 {[%emt 0:00:09]} Qxc8 {[%emt 0:00:12]} 33. Rd3 {[%emt 0:00:57]} Kh7 {[%emt 0:00:44]} 34. Re3 {[%emt 0:00:32]} Qf8 {[%emt 0:00:30]} 35. Nf3 {[%emt 0:00:34]} Bc5 {[%emt 0:00:40]} 36. Kg2 {[%emt 0:00:35]} Bxe3 {[%emt 0:00:12]} 37. Qxe3 {[%emt 0:00:04]} Kh8 {[%emt 0:00:37]} 38. Qxg5 {[%emt 0:00:16]} Qf7 {[%emt 0:00:30]} 39. Qe5 {[%emt 0:01:00]} Kg8 {[%emt 0:00:29]} 40. Qd4 {[%emt 0:00:00]} Qe6 {[%emt 0:00:00]} 41. Qd8+ {[%emt 0:07:53]} Kg7 {[%emt 0:03:20]} 42. Qd2 {[%emt 0:01:35]} Qd5 {[%emt 0:08:30]} 43. Qc3 {[%emt 0:00:33]} Qe4 {[%emt 0:02:00]} 44. Qd2 {[%emt 0:00:31]} Rg6 {[%emt 0:05:55]} 45. Qd7+ {[%emt 0:03:59]} Kh6 {[%emt 0:00:09]} 46. Kf2 {[%emt 0:00:44]} Qg4 {[%emt 0:04:43]} 47. Qc7 {[%emt 0:01:13]} Rg7 {[%emt 0:00:14]} 48. Qe5 {[%emt 0:03:10]} c5 {[%emt 0:02:10]} 49. a5 {[%emt 0:01:33]} Kh7 {[%emt 0:01:33]} 50. Qd6 {[%emt 0:01:27]} c4 {[%emt 0:01:13]} 51. Qe5 {[%emt 0:01:23]} b5 {[%emt 0:00:53]} 52. axb6 {[%emt 0:00:02]} axb6 {[%emt 0:00:10]} 53. Kf1 {[%emt 0:00:46]} Qg6 {[%emt 0:03:12]} 54. Qd5 {[%emt 0:02:08]} Re7 {[%emt 0:03:09]} 55. Kf2 {[%emt 0:02:06]} Rg7 {[%emt 0:00:38]} 56. Kf1 {[%emt 0:00:13]} Re7 {[%emt 0:00:44]} 1/2-1/2